fUST/lending_fUST_20250805
["ID","MTS","AMOUNT","RATE_DAILY","PERIOD"]
[377311217,1754333432259,-155.65,0.00028525,15]
[377311218,1754333432268,-155.65,0.00028625,15]
[377311219,1754333432278,-623.21,0.00028702,10]
[377311220,1754333432288,-1200.0,0.0002871,2]
[377311221,1754333432298,-200.0,0.0002871,2]
[377311222,1754333432308,-300.0,0.0002871,2]
[377311223,1754333432318,-300.0,0.0002871,2]
[377311224,1754333432327,-300.0,0.0002871,2]
[377311225,1754333432337,-206.96040508,0.00028713,2]
[377311315,1754333438034,-603.80882909,0.00027214,2]
[377311316,1754333438044,-500.0,0.00027214,2]
[377311317,1754333438056,-500.0,0.00027214,2]
[377311318,1754333438066,-453.9189198,0.00027214,2]
[377311319,1754333438076,-500.0,0.00027214,2]
[377311320,1754333438086,-500.0,0.00027214,2]
[377311321,1754333438095,-500.0,0.00027214,2]
[377311322,1754333438106,-500.0,0.00027214,2]
[377311323,1754333438115,-500.0,0.00027214,2]
[377311324,1754333438125,-500.0,0.00027214,2]
[377311325,1754333438136,-500.0,0.00027214,2]
[377311326,1754333438145,-307.42530994,0.00027214,2]
[377311328,1754333438156,-500.0,0.00027214,2]
[377311329,1754333438165,-500.0,0.00027214,2]
[377311331,1754333438174,-500.0,0.00027214,2]
[377311332,1754333438184,-500.0,0.00027214,2]
[377311333,1754333438193,-500.0,0.00027214,2]
[377311334,1754333438203,-500.0,0.00027214,2]
[377311335,1754333438212,-500.0,0.00027214,2]
[377311336,1754333438222,-500.0,0.00027214,2]
[377311337,1754333438231,-500.0,0.00027214,2]
[377311338,1754333438241,-500.0,0.00027214,2]
[377311339,1754333438251,-500.0,0.00027214,2]
[377311340,1754333438260,-500.0,0.00027214,2]
[377311341,1754333438270,-500.0,0.00027214,2]
[377311342,1754333438283,-500.0,0.00027214,2]
[377311343,1754333438293,-500.0,0.00027214,2]
[377311344,1754333438302,-500.0,0.00027214,2]
[377311345,1754333438312,-500.0,0.00027214,2]
[377311346,1754333438321,-500.0,0.00027214,2]
[377311347,1754333438331,-500.0,0.00027214,2]
[377311348,1754333438340,-500.0,0.00027214,2]
[377311349,1754333438350,-500.0,0.00027214,2]
[377311350,1754333438359,-500.0,0.00027214,2]
[377311351,1754333438370,-500.0,0.00027214,2]
[377311352,1754333438381,-500.0,0.00027214,2]
[377311353,1754333438390,-500.0,0.00027214,2]
[377311354,1754333438400,-500.0,0.00027214,2]
[377311355,1754333438412,-500.0,0.00027214,2]
[377311356,1754333438423,-500.0,0.00027214,2]
[377311357,1754333438435,-50000.0,0.00028425,2]
[377311358,1754333438445,-993.03959492,0.00028713,2]
[377311359,1754333438454,-211.373,0.00028714,20]
[377311360,1754333438463,-500.0,0.00028716,2]
[377311361,1754333438474,-155.65,0.00028725,15]
[377311362,1754333438483,-1336.63590344,0.00028809,2]
[377311363,1754333438493,-155.65,0.00028825,15]
[377311364,1754333438502,-155.65,0.00028925,15]
[377311365,1754333438511,-155.65,0.00029025,15]
[377311366,1754333438522,-213.01993925,0.00029054,2]
[377311367,1754333438532,-155.65,0.00029125,15]
[377311368,1754333438542,-155.65,0.00029225,15]
[377311369,1754333438551,-867.35724525,0.00029294,2]
[377311370,1754333438562,-155.65,0.00029325,15]
[377311371,1754333438571,-155.65,0.00029425,15]
[377311372,1754333438582,-155.65,0.00029525,15]
[377311373,1754333438591,-155.65,0.00029625,15]
[377311374,1754333438601,-800.0,0.00029645,2]
[377311375,1754333438611,-500.0,0.00029648,2]
[377311376,1754333438621,-186.28923591,0.00029648,2]
[377311377,1754333438631,-9497.33730413,0.00029649,2]
[377311378,1754333438641,-4818.50149171,0.00029673,2]
[377311379,1754333438650,-519.35,0.00029722,10]
[377311380,1754333438662,-155.65,0.00029725,15]
[377311381,1754333438672,-791.49,0.0002973,3]
[377311382,1754333438681,-395.74,0.0002973,3]
[377311383,1754333438691,-593.64,0.0002973,3]
[377311384,1754333438700,-432.79,0.0002973,10]
[377311385,1754333438710,-9497.33730413,0.0002973,2]
[377311386,1754333438720,-151.0,0.00029732,2]
[377311387,1754333438730,-151.0,0.00029732,2]
[377311388,1754333438742,-151.0,0.00029732,2]
[377311389,1754333438752,-151.0,0.00029732,2]
[377311390,1754333438762,-151.0,0.00029732,2]
[377311391,1754333438772,-151.0,0.00029732,2]
[377311392,1754333438781,-151.0,0.00029732,2]
[377311393,1754333438792,-300.0,0.00029732,2]
[377311394,1754333438801,-300.0,0.00029732,2]
[377311395,1754333438811,-300.0,0.00029732,2]
[377311396,1754333438820,-300.0,0.00029732,2]
[377311397,1754333438830,-151.0,0.00029732,2]
[377311398,1754333438839,-300.0,0.00029732,2]
[377311399,1754333438848,-151.0,0.00029732,2]
[377311400,1754333438858,-300.0,0.00029732,2]
[377311401,1754333438867,-151.0,0.00029732,2]
[377311402,1754333438877,-151.0,0.00029732,2]
[377311403,1754333438886,-300.0,0.00029732,2]
[377311404,1754333438895,-151.0,0.00029732,2]
[377311405,1754333438906,-300.0,0.00029732,2]
[377311406,1754333438915,-151.0,0.00029732,2]
[377311407,1754333438925,-151.0,0.00029732,2]
[377311408,1754333438934,-151.0,0.00029732,2]
[377311409,1754333438944,-300.0,0.00029732,2]
[377311410,1754333438953,-151.0,0.00029732,2]
[377311411,1754333438963,-300.0,0.00029732,2]
[377311412,1754333438972,-151.0,0.00029732,2]
[377311413,1754333438982,-300.0,0.00029732,2]
[377311414,1754333438991,-151.0,0.00029732,2]
[377311415,1754333439001,-300.0,0.00029732,2]
[377311416,1754333439011,-151.0,0.00029732,2]
[377311417,1754333439021,-300.0,0.00029732,2]
[377311418,1754333439031,-300.0,0.00029732,2]
[377311419,1754333439040,-151.0,0.00029732,2]
[377311420,1754333439050,-300.0,0.00029732,2]
[377311421,1754333439060,-413.53740036,0.00029732,2]
[377311422,1754333439069,-151.0,0.00029732,2]
[377311423,1754333439079,-151.0,0.00029732,2]
[377311424,1754333439088,-151.0,0.00029732,2]
[377311425,1754333439098,-151.0,0.00029732,2]
[377311426,1754333439107,-151.0,0.00029732,2]
[377311427,1754333439117,-300.0,0.00029732,2]
[377311428,1754333439127,-151.0,0.00029732,2]
[377311429,1754333439136,-300.0,0.00029732,2]
[377311430,1754333439146,-151.0,0.00029732,2]
[377311431,1754333439156,-300.0,0.00029732,2]
[377311432,1754333439166,-300.0,0.00029732,2]
[377311433,1754333439176,-300.0,0.00029732,2]
[377311434,1754333439186,-300.0,0.00029732,2]
[377311435,1754333439195,-151.0,0.00029732,2]
[377311436,1754333439205,-151.0,0.00029732,2]
[377311437,1754333439215,-151.0,0.00029732,2]
[377311438,1754333439224,-151.0,0.00029732,2]
[377311439,1754333439234,-151.0,0.00029732,2]
[377311440,1754333439244,-151.0,0.00029732,2]
[377311441,1754333439254,-151.0,0.00029732,2]
[377311442,1754333439263,-151.0,0.00029732,2]
[377311443,1754333439273,-151.0,0.00029732,2]
[377311444,1754333439282,-151.0,0.00029732,2]
[377311445,1754333439292,-151.0,0.00029732,2]
[377311446,1754333439302,-151.0,0.00029732,2]
[377311447,1754333439312,-151.0,0.00029732,2]
[377311448,1754333439321,-151.0,0.00029732,2]
[377311449,1754333439330,-197.87,0.0002974,3]
[377311450,1754333439340,-56948.64583175,0.0002974,2]
[377311451,1754333439354,-8075.48913585,0.0002974,2]
[377311452,1754333439366,-1457.2261613,0.0002974,2]
[377311453,1754333439375,-1942.7738387,0.0002975,2]
[377311454,1754333439386,-56324.99999999,0.0002975,2]
[377311455,1754333439398,-912.7891722,0.0002975,2]
[377311456,1754333439411,-711.80323751,0.0002975,2]
[377311457,1754333439426,-1827.5229,0.0002975,2]
[377311458,1754333439442,-6137.81676091,0.0002975,2]
[377311459,1754333439454,-990.0,0.0002975,2]
[377311483,1754333441975,-151.0,0.00029732,2]
[377311485,1754333441985,-151.0,0.00029732,2]
[377311487,1754333441994,-151.0,0.00029732,2]
[377311489,1754333442004,-151.0,0.00029732,2]
[377311491,1754333442013,-151.0,0.00029732,2]
[377311493,1754333442023,-151.0,0.00029732,2]
[377311495,1754333442033,-10101.46668558,0.0002975,2]
[377311617,1754333443140,-38.83904076,0.0002975,2]
[377311619,1754333443152,-370.888998,0.0002975,2]
[377311621,1754333443164,-689.4216302,0.0002975,2]
[377311631,1754333443238,-531.74364107,0.00027114,2]
[377311633,1754333443248,-151.0,0.00029732,2]
[377311635,1754333443258,-7822.15466824,0.0002975,2]
[377311770,1754333446175,-234.84918864,0.0002765,2]
[377311771,1754333446185,-151.0,0.00029732,2]
[377311774,1754333446195,-41.02464899,0.00029732,2]
[377311777,1754333446229,-109.97535101,0.00029732,2]
[377311778,1754333446239,-151.0,0.00029732,2]
[377311779,1754333446248,-151.0,0.00029732,2]
[377311780,1754333446258,-917.65149656,0.0002975,2]
[377311782,1754333446269,-18874.71028564,0.0002975,2]
[377311798,1754333447381,-44222.12277853,0.0002975,2]
[377311799,1754333447393,-9975.14084768,0.0002975,2]
[377311800,1754333447404,-23564.0,0.0002975,2]
[377311826,1754333461384,360.29458191,0.00026398,2]
[377311834,1754333533513,323.9185187,0.00029775,30]
[377311835,1754333533821,364.3585429,0.00029775,30]
[377311842,1754333556468,296.593558,0.00013699,2]
[377311843,1754333556680,296.593558,0.00020187,2]
[377311844,1754333556916,296.593558,0.00026676,2]
[377311846,1754333594231,292.8695803,0.00029775,30]
[377311847,1754333594497,320.2107096,0.00029775,30]
[377311848,1754333598275,150.0,0.00026489,30]
[377311850,1754333654884,292.8695803,0.00029775,30]
[377311851,1754333661055,242.982466,0.00026786,2]
[377311852,1754333703182,12153.6239226,0.00027,2]
[377311853,1754333703208,15000.0,0.00027,2]
[377311854,1754333703233,7395.42083596,0.00027,2]
[377311855,1754333714479,292.8695803,0.00029775,30]
[377311856,1754333762873,166.389303,0.00025778,2]
[377311857,1754333773602,374.4202578,0.00029775,30]
[377311858,1754333801931,30226.206674,0.0003,30]
[377311859,1754333803902,430.545078,0.00029863,30]
[377311860,1754333845547,196.311135,0.00026795,2]
[377311862,1754333913298,150.0,0.00026489,30]
[377311863,1754333945690,-215.83590458,0.000272,2]
[377311864,1754333945719,-500.0,0.000273,2]
[377311865,1754333945745,-177.99074872,0.00027526,15]
[377311866,1754333945768,-155.65,0.00027527,15]
[377311867,1754333945793,-155.65,0.00027627,15]
[377311868,1754333945817,-827.6736533,0.0002765,2]
[377311869,1754333945839,-1000.0,0.00027848,5]
[377311870,1754333945860,-160.0,0.00027898,2]
[377311871,1754333945882,-1200.0,0.00027899,2]
[377311872,1754333945903,-300.0,0.00027899,2]
[377311873,1754333945929,-3737.51012262,0.000279,18]
[377311874,1754333945952,-500.0,0.00027941,2]
[377311875,1754333945974,-500.0,0.00027941,2]
[377311876,1754333945997,-200.82503444,0.00027941,2]
[377311877,1754333946019,-500.0,0.00027941,2]
[377311878,1754333946041,-500.0,0.00027941,2]
[377311879,1754333946063,-500.0,0.00027941,2]
[377311880,1754333946085,-500.0,0.00027941,2]
[377311881,1754333946107,-500.0,0.00027941,2]
[377311882,1754333946130,-500.0,0.00027941,2]
[377311883,1754333946152,-500.0,0.00027941,2]
[377311884,1754333946175,-500.0,0.00027941,2]
[377311885,1754333946198,-500.0,0.00027941,2]
[377311886,1754333946221,-500.0,0.00027941,2]
[377311887,1754333946243,-500.0,0.00027941,2]
[377311888,1754333946265,-500.0,0.00027941,2]
[377311889,1754333946287,-500.0,0.00027941,2]
[377311890,1754333946309,-371.91892931,0.00027941,2]
[377311891,1754333946331,-500.0,0.00027941,2]
[377311892,1754333946353,-500.0,0.00027941,2]
[377311893,1754333946375,-500.0,0.00027941,2]
[377311894,1754333946399,-500.0,0.00027941,2]
[377311895,1754333946422,-500.0,0.00027941,2]
[377311896,1754333946444,-500.0,0.00027941,2]
[377311897,1754333946466,-500.0,0.00027941,2]
[377311898,1754333946489,-500.0,0.00027941,2]
[377311899,1754333946511,-500.0,0.00027941,2]
[377311900,1754333946534,-500.0,0.00027941,2]
[377311901,1754333946557,-500.0,0.00027941,2]
[377311902,1754333946579,-500.0,0.00027941,2]
[377311903,1754333946603,-500.0,0.00027941,2]
[377311904,1754333946623,-18248.90386566,0.00027942,2]
[377311905,1754333946645,-300.0,0.00028039,2]
[377311906,1754333946666,-169.098,0.0002804,18]
[377311907,1754333946687,-666.0,0.00028042,2]
[377311908,1754333946720,-1834.94374137,0.00028314,18]
[377311910,1754334010627,-202.73513054,0.000272,2]
[377311911,1754334010648,-623.84512858,0.00027427,5]
[377311912,1754334010672,-152.46,0.00027527,15]
[377311913,1754334010692,-178.28110486,0.00027939,2]
[377311914,1754334010714,-527.23761927,0.00028,3]
[377311915,1754334018761,500.0,0.00027941,2]
[377311916,1754334018797,500.0,0.00027941,2]
[377311917,1754334018839,353.44101675,0.00027941,2]
[377311918,1754334131718,202.80841386,0.000271,2]
[377311919,1754334149437,150.5,0.0002963,120]
[377311920,1754334149877,150.5,0.0002962,120]
[377311921,1754334150304,150.5,0.0002961,120]
[377311922,1754334197963,153.0,0.00029775,30]
[377311924,1754334227915,150.0,0.00026489,30]
[377311926,1754334274562,-551.78243553,0.0002765,2]
[377311927,1754334274582,-51.21756447,0.00028089,2]
[377311930,1754334447820,2407.27727042,0.00027109,2]
[377311931,1754334541716,150.0,0.00026489,30]
[377311934,1754334590631,242.982466,0.00026919,2]
[377311972,1754334632346,-155.65,0.00027524,15]
[377311974,1754334632356,-206.1210399,0.00027889,2]
[377311976,1754334632365,-367.85495702,0.000279,2]
[377311978,1754334632375,-136.82158834,0.00028,3]
[377311979,1754334632387,-390.41603093,0.00028,3]
[377311981,1754334632397,-171.7474125,0.00028067,2]
[377311983,1754334632409,-128.2525875,0.00028067,2]
[377311985,1754334632418,-1200.0,0.00028067,2]
[377311987,1754334632427,-300.0,0.00028067,2]
[377311989,1754334632437,-154.86697646,0.00028068,2]
[377311991,1754334632447,-500.0,0.00028068,2]
[377311993,1754334632457,-199.3499585,0.00028068,2]
[377311995,1754334632466,-182.35523888,0.00028068,2]
[377311997,1754334632475,-166.8775026,0.00028068,2]
[377311999,1754334632485,-500.0,0.00028068,2]
[377312001,1754334632495,-500.0,0.00028068,2]
[377312003,1754334632504,-495.33471092,0.00028068,2]
[377312005,1754334632514,-500.0,0.00028068,2]
[377312007,1754334632524,-500.0,0.00028068,2]
[377312009,1754334632533,-500.0,0.00028068,2]
[377312011,1754334632542,-19610.18302515,0.00028069,2]
[377312013,1754334632554,-435.68857626,0.00028069,2]
[377312015,1754334632566,-4854.12839859,0.00028069,2]
[377312017,1754334632576,-194.40054573,0.00028089,2]
[377312019,1754334632586,-854.41164845,0.00028089,2]
[377312021,1754334632595,-177.23097932,0.00028857,2]
[377312023,1754334632605,-256.76,0.00029227,18]
[377312025,1754334632615,-1245.85540521,0.0002955,2]
[377312027,1754334632625,-151.0,0.00029622,2]
[377312029,1754334632634,-151.0,0.00029622,2]
[377312031,1754334632643,-151.0,0.00029622,2]
[377312033,1754334632654,-151.0,0.00029622,2]
[377312035,1754334632663,-151.0,0.00029622,2]
[377312037,1754334632673,-151.0,0.00029622,2]
[377312039,1754334632683,-151.0,0.00029622,2]
[377312041,1754334632693,-151.0,0.00029622,2]
[377312043,1754334632704,-260.87697493,0.00029622,2]
[377312045,1754334632714,-300.0,0.00029622,2]
[377312047,1754334632725,-300.0,0.00029622,2]
[377312049,1754334632735,-151.0,0.00029622,2]
[377312051,1754334632747,-300.0,0.00029622,2]
[377312053,1754334632757,-151.0,0.00029622,2]
[377312055,1754334632766,-300.0,0.00029622,2]
[377312057,1754334632776,-33.74907561,0.00029622,2]
[377312059,1754334632788,-266.25092439,0.00029622,2]
[377312061,1754334632797,-151.0,0.00029622,2]
[377312063,1754334632808,-151.0,0.00029622,2]
[377312065,1754334632817,-300.0,0.00029622,2]
[377312067,1754334632827,-151.0,0.00029622,2]
[377312069,1754334632838,-300.0,0.00029622,2]
[377312070,1754334632847,-151.0,0.00029622,2]
[377312073,1754334632857,-300.0,0.00029622,2]
[377312074,1754334632866,-151.0,0.00029622,2]
[377312077,1754334632876,-300.0,0.00029622,2]
[377312079,1754334632885,-151.0,0.00029622,2]
[377312080,1754334632896,-151.0,0.00029622,2]
[377312083,1754334632906,-201.54390542,0.00029622,2]
[377312085,1754334632916,-151.0,0.00029622,2]
[377312086,1754334632930,-151.0,0.00029622,2]
[377312088,1754334632940,-151.0,0.00029622,2]
[377312090,1754334632950,-151.0,0.00029622,2]
[377312093,1754334632962,-151.0,0.00029622,2]
[377312094,1754334632972,-151.0,0.00029622,2]
[377312097,1754334632982,-151.0,0.00029622,2]
[377312099,1754334632992,-151.0,0.00029622,2]
[377312101,1754334633001,-151.0,0.00029622,2]
[377312103,1754334633011,-151.0,0.00029622,2]
[377312105,1754334633023,-151.0,0.00029622,2]
[377312107,1754334633034,-151.0,0.00029622,2]
[377312109,1754334633047,-151.0,0.00029622,2]
[377312111,1754334633057,-151.0,0.00029622,2]
[377312113,1754334633067,-151.0,0.00029622,2]
[377312115,1754334633076,-151.0,0.00029622,2]
[377312117,1754334633087,-151.0,0.00029622,2]
[377312119,1754334633096,-151.0,0.00029622,2]
[377312120,1754334633106,-151.0,0.00029622,2]
[377312122,1754334633116,-151.0,0.00029622,2]
[377312124,1754334633125,-151.0,0.00029622,2]
[377312126,1754334633135,-151.0,0.00029622,2]
[377312128,1754334633144,-169.348,0.0002963,23]
[377312130,1754334633154,-803.52,0.0002963,3]
[377312132,1754334633164,-401.76,0.0002963,3]
[377312134,1754334633174,-200.88,0.0002963,3]
[377312136,1754334633183,-602.68,0.0002963,3]
[377312138,1754334633193,-476.22,0.0002963,3]
[377312140,1754334633202,-188.58,0.0002963,10]
[377312142,1754334633212,-329.23,0.0002963,10]
[377312144,1754334633221,-274.35,0.0002963,10]
[377312146,1754334633231,-228.63,0.0002963,10]
[377312148,1754334633240,-480.40246514,0.00029639,2]
[377312150,1754334633251,-8493.02408251,0.0002964,2]
[377312239,1754334638221,-3212.33432782,0.0002955,2]
[377312240,1754334638232,-1452.51846543,0.0002964,2]
[377312241,1754334638244,-968.55808915,0.0002964,2]
[377312245,1754334638327,-359085.89936291,0.0002964,2]
[377312247,1754334638337,-160.0,0.0002965,3]
[377312248,1754334638348,-500.0,0.00029673,5]
[377312249,1754334638360,-1245.85540518,0.00029704,2]
[377312250,1754334638370,-3465.959552,0.00029732,2]
[377312251,1754334638379,-451.03822142,0.00029732,2]
[377312252,1754334638389,-193.93671748,0.00029732,2]
[377312253,1754334638398,-155.65,0.00029825,15]
[377312254,1754334638408,-1245.85540518,0.00029857,2]
[377312255,1754334638417,-3764.7398646,0.000299,21]
[377312256,1754334638426,-155.8378588,0.00029925,15]
[377312257,1754334638435,-1245.85540518,0.00030011,2]
[377312258,1754334638444,-800.0,0.00030013,2]
[377312259,1754334638454,-534.93524627,0.00030064,7]
[377312260,1754334638463,-151.2341,0.00030124,2]
[377312261,1754334638472,-400.0,0.00030137,120]
[377312262,1754334638481,-1245.85540518,0.00030164,2]
[377312263,1754334638490,-325.0,0.00030218,7]
[377312264,1754334638499,-325.0,0.00030218,7]
[377312265,1754334638508,-325.0,0.00030218,7]
[377312266,1754334638517,-1000.0,0.00030221,5]
[377312267,1754334638529,-150.5,0.00030235,120]
[377312268,1754334638538,-3764.73986446,0.00030245,22]
[377312269,1754334638549,-150.5,0.00030245,120]
[377312270,1754334638559,-150.5,0.00030255,120]
[377312271,1754334638568,-231.67098287,0.00030256,3]
[377312272,1754334638578,-160.0,0.00030256,3]
[377312273,1754334638587,-160.0,0.00030256,3]
[377312274,1754334638598,-215.16777298,0.00030256,3]
[377312275,1754334638608,-312.16666667,0.00030256,3]
[377312276,1754334638617,-216.36857094,0.00030256,3]
[377312277,1754334638627,-1594.76117139,0.00030264,2]
[377312278,1754334638637,-235501.90516176,0.00030264,20]
[377312288,1754334640379,-677.53183789,0.00030264,20]
[377312297,1754334640513,-733.97093026,0.00030264,20]
[377312344,1754334646275,-151.0,0.00029622,2]
[377312345,1754334646286,-3212.3343278,0.00029857,2]
[377312346,1754334646296,-3212.3343278,0.00030164,2]
[377312347,1754334646306,-190.52,0.00030254,10]
[377312348,1754334646315,-17657.57311943,0.00030264,20]
[377312349,1754334646326,-2601.209821,0.00030264,20]
[377312350,1754334646337,-9939.781176,0.00030264,20]
[377312351,1754334646348,-524.167,0.00030264,20]
[377312352,1754334646816,-2154.86324431,0.00030264,20]
[377312353,1754334676531,217.549677,0.00025778,2]
[377312354,1754334677028,186.05060959,0.00026044,2]
[377312355,1754334707022,267.835568,0.00013699,2]
[377312356,1754334707278,267.835568,0.00020187,2]
[377312357,1754334707504,267.835568,0.00026676,2]
[377312359,1754334736277,163.465804,0.00027874,120]
[377312362,1754334799846,-152.46,0.00027524,15]
[377312363,1754334799871,-147.54,0.00028164,2]
[377312365,1754334867519,218.15227839,0.0003,120]
[377312366,1754334928090,303.0,0.00027,7]
[377312367,1754334989186,150.5,0.0002952,120]
[377312368,1754334989258,293.0,0.0002952,120]
[377312369,1754334989626,150.5,0.0002951,120]
[377312370,1754334989691,293.0,0.0002951,120]
[377312371,1754334990103,150.5,0.000295,120]
[377312372,1754334990133,293.0,0.000295,120]
[377312373,1754335029555,265.0,0.00027,7]
[377312374,1754335129285,232.0,0.00027,7]
[377312375,1754335147385,7070.9009677,0.00028132,120]
[377312376,1754335228486,203.0,0.00027,7]
[377312377,1754335328478,177.0,0.00027,7]
[377312378,1754335349846,150.5,0.0002952,120]
[377312379,1754335350286,150.5,0.0002951,120]
[377312380,1754335350728,240.87,0.000295,120]
[377312381,1754335378098,180.300562,0.00028044,61]
[377312382,1754335378519,180.300562,0.00028044,120]
[377312383,1754335428520,155.0,0.00027,7]
[377312385,1754335528609,155.0,0.00027,7]
[377312387,1754335556516,202.52526607,0.00026598,2]
[377312390,1754335561189,-196.05663801,0.0002741,2]
[377312391,1754335561216,-52.14888267,0.00027522,15]
[377312393,1754335565112,-103.50111733,0.00027522,15]
[377312394,1754335565135,-148.61083727,0.00027671,14]
[377312395,1754335571161,-6.38916273,0.00027671,14]
[377312396,1754335571184,-204.67690893,0.00027719,2]
[377312397,1754335571213,-114.66462021,0.00027775,2]
[377312398,1754335575331,-90.01228872,0.00027775,2]
[377312399,1754335575356,-100.71113378,0.00027818,2]
[377312400,1754335600237,-184.76626635,0.00027732,2]
[377312401,1754335604089,-246.64829135,0.00027732,2]
[377312402,1754335605915,-159.684336,0.00027732,2]
[377312403,1754335608257,-247.53889469,0.00027732,2]
[377312404,1754335609694,241.674381,0.00026805,2]
[377312405,1754335609830,-384.11761054,0.00027732,2]
[377312406,1754335614461,-156.93130434,0.00027732,2]
[377312407,1754335619132,-259.89752222,0.00027732,2]
[377312409,1754335621435,-201.99381989,0.00027732,2]
[377312410,1754335621720,510.82361599,0.00030262,120]
[377312411,1754335624595,-326.58083381,0.00027732,2]
[377312412,1754335626689,-80.61362374,0.00027732,2]
[377312413,1754335626712,-94.62051348,0.000278,2]
[377312414,1754335628584,156.0,0.00027,7]
[377312415,1754335635863,-83.66059138,0.000278,2]
[377312416,1754335635890,-159.05285533,0.00027818,2]
[377312417,1754335637546,-140.94714467,0.00027818,2]
[377312418,1754335637569,-86.60242178,0.00027819,2]
[377312419,1754335639851,-186.70035586,0.00027819,2]
[377312420,1754335642088,-26.69722236,0.00027819,2]
[377312421,1754335642110,-193.40110986,0.00027819,2]
[377312422,1754335644481,-153.50768172,0.00027719,2]
[377312423,1754335644503,-56.84488081,0.00027746,2]
[377312424,1754335647622,-96.66280088,0.00027746,2]
[377312425,1754335647644,-153.50768169,0.00027773,2]
[377312426,1754335647665,-31.05059342,0.000278,2]
[377312427,1754335649242,-154.06,0.00027622,15]
[377312428,1754335649264,-113.04638613,0.000278,2]
[377312429,1754335650903,-154.05,0.00027522,15]
[377312430,1754335650926,-9.41070214,0.000278,2]
[377312431,1754335650948,-106.59889014,0.00027819,2]
[377312432,1754335650971,-153.82785513,0.00027819,2]
[377312433,1754335654179,-303.9360333,0.00027819,2]
[377312435,1754335663438,861.090156,0.00029726,30]
[377312437,1754335694483,430.545078,0.00029726,30]
[377312438,1754335704923,-189.93666899,0.00027819,2]
[377312439,1754335709951,205.0,0.0002952,120]
[377312440,1754335710379,205.0,0.0002951,120]
[377312441,1754335710814,205.0,0.000295,120]
[377312442,1754335712253,1091.5039381,0.0002,2]
[377312443,1754335712277,948.18942826,0.0002,2]
[377312444,1754335719728,12884.461115,0.0002,2]
[377312448,1754335723858,1167.34945674,0.0002,2]
[377312449,1754335723881,15000.0,0.0002,2]
[377312450,1754335723905,3531.9334146,0.0002,2]
[377312452,1754335728445,156.0,0.00027,7]
[377312453,1754335729698,-312.81415749,0.00027719,2]
[377312454,1754335729724,-41.12041436,0.00027819,2]
[377312455,1754335734267,-254.43632542,0.00027819,2]
[377312456,1754335737845,-179.96740739,0.00027819,2]
[377312457,1754335741348,-76.77529541,0.00027819,2]
[377312458,1754335741371,-206.13723324,0.00027819,2]
[377312465,1754335828867,156.0,0.00027,7]
[377312479,1754335832584,-300.0,0.00027819,2]
[377312480,1754335832595,-178.0,0.00027819,2]
[377312481,1754335832606,-1200.0,0.00027819,2]
[377312482,1754335832616,-300.0,0.00027819,2]
[377312483,1754335832626,-300.0,0.00027819,2]
[377312484,1754335832638,-500.0,0.0002782,2]
[377312485,1754335832649,-200.82503444,0.0002782,2]
[377312486,1754335832659,-500.0,0.0002782,2]
[377312487,1754335832669,-500.0,0.0002782,2]